fUSD/lending_fUSD_20250524
["ID","MTS","AMOUNT","RATE_DAILY","PERIOD"]
[362259704,1748123435177,-420.0,0.00019315,2]
[362259705,1748123435188,-459.39,0.00019315,2]
[362259706,1748123435198,-420.0,0.00019315,2]
[362259707,1748123435207,-448.5,0.00019315,2]
[362259708,1748123435217,-1834.9,0.00019315,2]
[362259709,1748123435227,-956.26,0.00019315,2]
[362259710,1748123435236,-277.92746165,0.00019315,2]
[362259711,1748123435246,-420.0,0.00019315,2]
[362259712,1748123435256,-746.94,0.00019315,2]
[362259713,1748123435265,-420.0,0.00019315,2]
[362259714,1748123435275,-1078.35,0.00019315,2]
[362259715,1748123435284,-420.0,0.00019315,2]
[362259716,1748123435293,-3938.23566026,0.00019324,2]
[362259717,1748123435303,-4482.97,0.00019339,2]
[362259718,1748123435313,-7358.4,0.00019339,2]
[362259719,1748123435322,-420.0,0.00019342,2]
[362259720,1748123435332,-1171.97,0.00019342,2]
[362259721,1748123435341,-1137.36,0.00019342,2]
[362259722,1748123435351,-420.0,0.00019342,2]
[362259723,1748123435360,-512.52,0.00019342,2]
[362259724,1748123435370,-527.49,0.00019342,2]
[362259725,1748123435379,-420.0,0.00019342,2]
[362259726,1748123435389,-13251.48,0.00019342,2]
[362259727,1748123435399,-420.0,0.00019342,2]
[362259728,1748123435408,-420.0,0.00019342,2]
[362259729,1748123435417,-420.0,0.00019342,2]
[362259730,1748123435427,-420.0,0.00019342,2]
[362259731,1748123435437,-420.0,0.00019342,2]
[362259732,1748123435446,-420.0,0.00019342,2]
[362259733,1748123435456,-434.69,0.00019342,2]
[362259734,1748123435466,-420.0,0.00019342,2]
[362259735,1748123435476,-420.0,0.00019342,2]
[362259736,1748123435485,-420.0,0.00019342,2]
[362259737,1748123435495,-420.0,0.00019342,2]
[362259738,1748123435505,-420.0,0.00019342,2]
[362259739,1748123435514,-420.0,0.00019342,2]
[362259740,1748123435523,-420.0,0.00019342,2]
[362259741,1748123435533,-989.98,0.00019342,2]
[362259742,1748123435542,-420.0,0.00019342,2]
[362259743,1748123435552,-459.39,0.00019342,2]
[362259744,1748123435562,-420.0,0.00019342,2]
[362259745,1748123435571,-448.5,0.00019342,2]
[362259746,1748123435580,-1834.9,0.00019342,2]
[362259747,1748123435590,-956.26,0.00019342,2]
[362259748,1748123435599,-420.0,0.00019342,2]
[362259749,1748123435609,-746.94,0.00019342,2]
[362259750,1748123435619,-420.0,0.00019342,2]
[362259751,1748123435629,-1078.35,0.00019342,2]
[362259752,1748123435639,-420.0,0.00019342,2]
[362259753,1748123435649,-864.50308435,0.00019346,2]
[362259754,1748123435659,-864.50308434,0.00019346,2]
[362259755,1748123435669,-11087.67579635,0.00019352,2]
[362259756,1748123435678,-151.0,0.00019369,2]
[362259757,1748123435688,-1199.20597015,0.00019369,2]
[362259758,1748123435698,-225.6,0.00019369,2]
[362259759,1748123435708,-1171.97,0.00019369,2]
[362259760,1748123435718,-1137.36,0.00019369,2]
[362259761,1748123435728,-420.0,0.00019369,2]
[362259762,1748123435738,-527.49,0.00019369,2]
[362259763,1748123435748,-403.55,0.00019369,2]
[362259764,1748123435758,-13251.48,0.00019369,2]
[362259765,1748123435767,-420.0,0.00019369,2]
[362259766,1748123435967,-420.0,0.00019369,2]
[362259767,1748123436005,-454.5,0.00019369,2]
[362259768,1748123436017,-455.13,0.00019369,2]
[362259769,1748123436026,-420.0,0.00019369,2]
[362259770,1748123436036,-420.0,0.00019369,2]
[362259771,1748123436045,-434.69,0.00019369,2]
[362259772,1748123436054,-420.0,0.00019369,2]
[362259773,1748123436064,-420.0,0.00019369,2]
[362259774,1748123436074,-420.0,0.00019369,2]
[362259775,1748123436084,-420.0,0.00019369,2]
[362259776,1748123436094,-420.0,0.00019369,2]
[362259777,1748123436105,-420.0,0.00019369,2]
[362259778,1748123436115,-420.0,0.00019369,2]
[362259779,1748123436125,-989.98,0.00019369,2]
[362259780,1748123436135,-377.81,0.00019369,2]
[362259781,1748123436145,-459.39,0.00019369,2]
[362259782,1748123436154,-420.0,0.00019369,2]
[362259783,1748123436164,-448.5,0.00019369,2]
[362259784,1748123436173,-1834.9,0.00019369,2]
[362259785,1748123436184,-956.26,0.00019369,2]
[362259786,1748123436194,-279.3,0.00019369,2]
[362259787,1748123436203,-746.94,0.00019369,2]
[362259788,1748123436213,-420.0,0.00019369,2]
[362259789,1748123436223,-1078.35,0.00019369,2]
[362259790,1748123436232,-420.0,0.00019369,2]
[362259791,1748123436243,-501.24404194,0.00019373,2]
[362259792,1748123436253,-500.0,0.00019373,2]
[362259793,1748123436262,-500.74291645,0.00019373,2]
[362259794,1748123436273,-606.54914481,0.0001938,2]
[362259795,1748123436282,-500.0,0.0001938,2]
[362259796,1748123436292,-500.0,0.0001938,2]
[362259797,1748123436301,-1171.97,0.00019397,2]
[362259798,1748123436310,-1137.36,0.00019397,2]
[362259799,1748123436321,-420.0,0.00019397,2]
[362259800,1748123436332,-527.49,0.00019397,2]
[362259801,1748123436343,-13251.48,0.00019397,2]
[362259802,1748123436353,-563.04,0.00019397,2]
[362259803,1748123436364,-420.0,0.00019397,2]
[362259804,1748123436373,-420.0,0.00019397,2]
[362259805,1748123436383,-420.0,0.00019397,2]
[362259806,1748123436393,-434.69,0.00019397,2]
[362259807,1748123436403,-183.47,0.00019397,2]
[362259808,1748123436415,-420.0,0.00019397,2]
[362259809,1748123436427,-420.0,0.00019397,2]
[362259810,1748123436437,-235.31,0.00019397,2]
[362259811,1748123436447,-339.89,0.00019397,2]
[362259812,1748123436458,-535.07,0.00019397,2]
[362259813,1748123436468,-420.0,0.00019397,2]
[362259814,1748123436478,-989.98,0.00019397,2]
[362259815,1748123436487,-459.39,0.00019397,2]
[362259816,1748123436496,-485.89,0.00019397,2]
[362259817,1748123436506,-448.5,0.00019397,2]
[362259818,1748123436515,-1834.9,0.00019397,2]
[362259819,1748123436524,-956.26,0.00019397,2]
[362259820,1748123436533,-746.94,0.00019397,2]
[362259821,1748123436542,-420.0,0.00019397,2]
[362259822,1748123436551,-1078.35,0.00019397,2]
[362259823,1748123436561,-420.0,0.00019397,2]
[362259824,1748123436570,-8700.0,0.000194,7]
[362259825,1748123436579,-3938.23566026,0.00019407,2]
[362259826,1748123436588,-11087.67579626,0.00019413,2]
[362259827,1748123436597,-172.56,0.00019414,2]
[362259828,1748123436607,-1171.97,0.00019424,2]
[362259829,1748123436616,-1137.36,0.00019424,2]
[362259830,1748123436625,-182.02,0.00019424,2]
[362259831,1748123436634,-527.49,0.00019424,2]
[362259832,1748123436643,-13251.48,0.00019424,2]
[362259833,1748123436653,-420.0,0.00019424,2]
[362259834,1748123436662,-420.0,0.00019424,2]
[362259835,1748123436672,-420.0,0.00019424,2]
[362259836,1748123436682,-434.69,0.00019424,2]
[362259837,1748123436691,-420.0,0.00019424,2]
[362259838,1748123436700,-420.0,0.00019424,2]
[362259839,1748123436710,-186.04265073,0.00019424,2]
[362259840,1748123436719,-989.98,0.00019424,2]
[362259841,1748123436728,-459.39,0.00019424,2]
[362259842,1748123436737,-448.5,0.00019424,2]
[362259843,1748123436747,-1834.9,0.00019424,2]
[362259844,1748123436756,-956.26,0.00019424,2]
[362259845,1748123436765,-746.94,0.00019424,2]
[362259846,1748123436775,-420.0,0.00019424,2]
[362259847,1748123436784,-1078.35,0.00019424,2]
[362259848,1748123436793,-420.0,0.00019424,2]
[362259849,1748123436803,-1171.97,0.00019452,2]
[362259850,1748123436812,-1137.36,0.00019452,2]
[362259851,1748123436822,-527.49,0.00019452,2]
[362259852,1748123436832,-13251.48,0.00019452,2]
[362259853,1748123436842,-420.0,0.00019452,2]
[362259854,1748123436855,-420.0,0.00019452,2]
[362259855,1748123436865,-420.0,0.00019452,2]
[362259856,1748123436875,-434.69,0.00019452,2]
[362259857,1748123436884,-199.19,0.00019452,2]
[362259858,1748123436895,-223.13,0.00019452,2]
[362259859,1748123436904,-989.98,0.00019452,2]
[362259860,1748123436914,-459.39,0.00019452,2]
[362259861,1748123436925,-448.5,0.00019452,2]
[362259862,1748123436935,-1834.9,0.00019452,2]
[362259863,1748123436945,-956.26,0.00019452,2]
[362259864,1748123436954,-746.94,0.00019452,2]
[362259865,1748123436964,-420.0,0.00019452,2]
[362259866,1748123436973,-1078.35,0.00019452,2]
[362259867,1748123436983,-420.0,0.00019452,2]
[362259868,1748123436993,-160.34780988,0.00019461,2]
[362259869,1748123437003,-11087.67579626,0.00019474,2]
[362259870,1748123437012,-1171.97,0.00019479,2]
[362259871,1748123437021,-1137.36,0.00019479,2]
[362259872,1748123437031,-527.49,0.00019479,2]
[362259873,1748123437040,-13251.48,0.00019479,2]
[362259874,1748123437049,-420.0,0.00019479,2]
[362259875,1748123437059,-420.0,0.00019479,2]
[362259876,1748123437068,-420.0,0.00019479,2]
[362259877,1748123437078,-434.69,0.00019479,2]
[362259878,1748123437088,-989.98,0.00019479,2]
[362259879,1748123437098,-459.39,0.00019479,2]
[362259880,1748123437107,-448.5,0.00019479,2]
[362259881,1748123437116,-1834.9,0.00019479,2]
[362259882,1748123437126,-956.26,0.00019479,2]
[362259883,1748123437135,-746.94,0.00019479,2]
[362259884,1748123437144,-431.97,0.00019479,2]
[362259885,1748123437153,-1078.35,0.00019479,2]
[362259886,1748123437163,-420.0,0.00019479,2]
[362259887,1748123437172,-3938.23566026,0.00019489,2]
[362259888,1748123437182,-1700.0,0.000195,7]
[362259889,1748123437191,-1171.97,0.00019506,2]
[362259890,1748123437201,-1137.36,0.00019506,2]
[362259891,1748123437210,-527.49,0.00019506,2]
[362259892,1748123437220,-13251.48,0.00019506,2]
[362259893,1748123437230,-420.0,0.00019506,2]
[362259894,1748123437239,-279.54,0.00019506,2]
[362259895,1748123437249,-420.0,0.00019506,2]
[362259896,1748123437259,-434.69,0.00019506,2]
[362259897,1748123437268,-989.98,0.00019506,2]
[362259898,1748123437277,-459.39,0.00019506,2]
[362259899,1748123437287,-448.5,0.00019506,2]
[362259900,1748123437296,-1834.9,0.00019506,2]
[362259901,1748123437306,-956.26,0.00019506,2]
[362259902,1748123437315,-746.94,0.00019506,2]
[362259903,1748123437324,-1078.35,0.00019506,2]
[362259904,1748123437334,-424.18524875,0.00019506,2]
[362259905,1748123437343,-500.0,0.00019507,2]
[362259906,1748123437352,-1171.97,0.00019534,2]
[362259907,1748123437361,-1137.36,0.00019534,2]
[362259908,1748123437371,-527.49,0.00019534,2]
[362259909,1748123437380,-13251.48,0.00019534,2]
[362259910,1748123437389,-420.0,0.00019534,2]
[362259911,1748123437399,-420.0,0.00019534,2]
[362259912,1748123437408,-434.69,0.00019534,2]
[362259913,1748123437417,-989.98,0.00019534,2]
[362259914,1748123437427,-459.39,0.00019534,2]
[362259915,1748123437438,-448.5,0.00019534,2]
[362259916,1748123437447,-1834.9,0.00019534,2]
[362259917,1748123437456,-956.26,0.00019534,2]
[362259918,1748123437465,-746.94,0.00019534,2]
[362259919,1748123437474,-1078.35,0.00019534,2]
[362259920,1748123437483,-160.34780982,0.00019534,2]
[362259921,1748123437493,-11087.67579626,0.00019535,2]
[362259922,1748123437503,-1171.97,0.00019561,2]
[362259923,1748123437512,-1137.36,0.00019561,2]
[362259924,1748123437521,-527.49,0.00019561,2]
[362259925,1748123437530,-13251.48,0.00019561,2]
[362259926,1748123437539,-420.0,0.00019561,2]
[362259927,1748123437549,-420.0,0.00019561,2]
[362259928,1748123437559,-434.69,0.00019561,2]
[362259929,1748123437568,-989.98,0.00019561,2]
[362259930,1748123437577,-459.39,0.00019561,2]
[362259931,1748123437586,-448.5,0.00019561,2]
[362259932,1748123437596,-1834.9,0.00019561,2]
[362259933,1748123437605,-956.26,0.00019561,2]
[362259934,1748123437615,-746.94,0.00019561,2]
[362259935,1748123437624,-1078.35,0.00019561,2]
[362259936,1748123437633,-3938.23566026,0.00019571,2]
[362259937,1748123437642,-1171.97,0.00019589,2]
[362259938,1748123437651,-1137.36,0.00019589,2]
[362259939,1748123437660,-527.49,0.00019589,2]
[362259941,1748123437670,-13251.48,0.00019589,2]
[362259942,1748123437679,-264.15,0.00019589,2]
[362259944,1748123437690,-230.51,0.00019589,2]
[362259945,1748123437699,-434.69,0.00019589,2]
[362259946,1748123437709,-989.98,0.00019589,2]
[362259947,1748123437718,-459.39,0.00019589,2]
[362259948,1748123437728,-448.5,0.00019589,2]
[362259949,1748123437737,-1834.9,0.00019589,2]
[362259950,1748123437747,-956.26,0.00019589,2]
[362259951,1748123437756,-746.94,0.00019589,2]
[362259952,1748123437765,-1078.35,0.00019589,2]
[362259953,1748123437775,-11087.67579626,0.00019596,2]
[362259954,1748123437784,-1000.0,0.00019596,2]
[362259955,1748123437794,-472.797364,0.00019599,2]
[362259956,1748123437803,-1700.0,0.000196,7]
[362259957,1748123437813,-221.60397265,0.000196,2]
[362259958,1748123437823,-160.34780982,0.00019607,2]
[362259959,1748123437832,-1171.97,0.00019616,2]
[362259960,1748123437841,-1137.36,0.00019616,2]
[362259961,1748123437852,-527.49,0.00019616,2]
[362259962,1748123437862,-13251.48,0.00019616,2]
[362259963,1748123437872,-434.69,0.00019616,2]
[362259964,1748123437882,-989.98,0.00019616,2]
[362259965,1748123437892,-459.39,0.00019616,2]
[362259966,1748123437902,-448.5,0.00019616,2]
[362259967,1748123437911,-1834.9,0.00019616,2]
[362259968,1748123437922,-956.26,0.00019616,2]
[362259969,1748123437933,-746.94,0.00019616,2]
[362259970,1748123437944,-1078.35,0.00019616,2]
[362259971,1748123437953,-500.0,0.00019642,2]
[362259972,1748123437964,-1171.97,0.00019643,2]
[362259973,1748123437974,-1137.36,0.00019643,2]
[362259974,1748123437984,-527.49,0.00019643,2]
[362259975,1748123437993,-13251.48,0.00019643,2]
[362259976,1748123438003,-434.69,0.00019643,2]
[362259977,1748123438013,-989.98,0.00019643,2]
[362259978,1748123438022,-459.39,0.00019643,2]
[362259979,1748123438032,-448.5,0.00019643,2]
[362259980,1748123438041,-1834.9,0.00019643,2]
[362259981,1748123438051,-956.26,0.00019643,2]
[362259982,1748123438060,-746.94,0.00019643,2]
[362259983,1748123438070,-1078.35,0.00019643,2]
[362259984,1748123438080,-3938.23566026,0.00019653,2]
[362259985,1748123438089,-11087.67579626,0.00019656,2]
[362259986,1748123438099,-1171.97,0.00019671,2]
[362259987,1748123438108,-1137.36,0.00019671,2]
[362259988,1748123438118,-527.49,0.00019671,2]
[362259989,1748123438127,-13251.48,0.00019671,2]
[362259990,1748123438137,-434.69,0.00019671,2]
[362259991,1748123438146,-989.98,0.00019671,2]
[362259992,1748123438155,-459.39,0.00019671,2]
[362259993,1748123438165,-448.5,0.00019671,2]
[362259994,1748123438175,-1834.9,0.00019671,2]
[362259995,1748123438185,-956.26,0.00019671,2]
[362259996,1748123438194,-746.94,0.00019671,2]
[362259997,1748123438204,-1078.35,0.00019671,2]
[362259998,1748123438214,-160.34780982,0.00019681,2]
[362259999,1748123438224,-1171.97,0.00019698,2]
[362260000,1748123438233,-1137.36,0.00019698,2]
[362260001,1748123438242,-527.49,0.00019698,2]
[362260002,1748123438251,-13251.48,0.00019698,2]
[362260003,1748123438260,-434.69,0.00019698,2]
[362260004,1748123438270,-989.98,0.00019698,2]
[362260005,1748123438279,-459.39,0.00019698,2]
[362260006,1748123438336,-448.5,0.00019698,2]
[362260007,1748123438346,-1834.9,0.00019698,2]
[362260008,1748123438355,-956.26,0.00019698,2]
[362260009,1748123438364,-746.94,0.00019698,2]
[362260010,1748123438374,-1078.35,0.00019698,2]
[362260011,1748123438383,-38408.34510494,0.000197,2]
[362260012,1748123438391,-1700.0,0.000197,7]
[362260013,1748123438400,-1978.899,0.00019717,2]
[362260014,1748123438410,-11087.67579626,0.00019717,2]
[362260015,1748123438419,-1171.97,0.00019726,2]
[362260016,1748123438428,-1137.36,0.00019726,2]
[362260017,1748123438437,-527.49,0.00019726,2]
[362260018,1748123438446,-13251.48,0.00019726,2]
[362260019,1748123438455,-434.69,0.00019726,2]
[362260020,1748123438464,-989.98,0.00019726,2]
[362260021,1748123438473,-459.39,0.00019726,2]
[362260022,1748123438483,-448.5,0.00019726,2]
[362260023,1748123438492,-1834.9,0.00019726,2]
[362260024,1748123438501,-956.26,0.00019726,2]
[362260025,1748123438511,-746.94,0.00019726,2]
[362260026,1748123438520,-1078.35,0.00019726,2]
[362260027,1748123438529,-325.82,0.00019726,2]
[362260028,1748123438538,-162.91,0.00019726,2]
[362260029,1748123438547,-162.91,0.00019726,2]
[362260030,1748123438556,-162.91,0.00019726,2]
[362260031,1748123438565,-162.91,0.00019726,2]
[362260032,1748123438575,-162.91,0.00019726,2]
[362260033,1748123438583,-162.91,0.00019726,2]
[362260034,1748123438593,-353.4,0.00019726,2]
[362260035,1748123438602,-3938.23566026,0.00019736,2]
[362260036,1748123438611,-800.0,0.00019748,2]
[362260037,1748123438619,-6916.0,0.00019748,2]
[362260038,1748123438629,-844.0,0.00019748,2]
[362260039,1748123438638,-183.216,0.00019748,2]
[362260040,1748123438648,-150.621,0.00019748,2]
[362260041,1748123438657,-4054.0,0.00019748,2]
[362260042,1748123438666,-881.0,0.00019748,2]
[362260043,1748123438675,-1171.97,0.00019753,2]
[362260044,1748123438684,-1137.36,0.00019753,2]
[362260045,1748123438693,-527.49,0.00019753,2]
[362260046,1748123438702,-13251.48,0.00019753,2]
[362260047,1748123438712,-434.69,0.00019753,2]
[362260048,1748123438721,-989.98,0.00019753,2]
[362260049,1748123438731,-459.39,0.00019753,2]
[362260050,1748123438740,-448.5,0.00019753,2]
[362260051,1748123438750,-1834.9,0.00019753,2]
[362260052,1748123438760,-956.26,0.00019753,2]
[362260053,1748123438770,-746.94,0.00019753,2]
[362260054,1748123438779,-1078.35,0.00019753,2]
[362260055,1748123438789,-160.34780982,0.00019754,2]
[362260056,1748123438798,-269.95,0.00019758,2]
[362260057,1748123438807,-11087.67579626,0.00019778,2]
[362260058,1748123438817,-1171.97,0.0001978,2]
[362260059,1748123438825,-1137.36,0.0001978,2]
[362260060,1748123438835,-527.49,0.0001978,2]
[362260061,1748123438844,-13251.48,0.0001978,2]
[362260062,1748123438857,-434.69,0.0001978,2]
[362260063,1748123438867,-989.98,0.0001978,2]
[362260064,1748123438876,-459.39,0.0001978,2]
[362260065,1748123438885,-448.5,0.0001978,2]
[362260066,1748123438896,-1834.9,0.0001978,2]
[362260067,1748123438906,-956.26,0.0001978,2]
[362260068,1748123438915,-746.94,0.0001978,2]
[362260069,1748123438926,-1078.35,0.0001978,2]
[362260070,1748123438936,-1700.0,0.000198,7]
[362260071,1748123438945,-1000.0,0.000198,2]
[362260072,1748123438955,-1172.11,0.00019808,2]
[362260073,1748123438964,-1137.58,0.00019808,2]
[362260074,1748123438973,-527.68,0.00019808,2]
[362260075,1748123438982,-532.12761224,0.00019808,2]
[362260076,1748123439311,-280.828,0.00019748,2]
[362260077,1748123439321,-12719.38238775,0.00019808,2]
[362260078,1748123439330,-434.86,0.00019808,2]
[362260079,1748123439339,-990.03,0.00019808,2]
[362260080,1748123439348,-459.54,0.00019808,2]
[362260081,1748123439358,-448.57,0.00019808,2]
[362260082,1748123439367,-1834.93,0.00019808,2]
[362260083,1748123439376,-956.48565152,0.00019808,2]
[362260084,1748123439385,-746.99733843,0.00019808,2]
[362260085,1748123439394,-1078.47999999,0.00019808,2]
[362260086,1748123439404,-3938.23566026,0.00019818,2]
[362260087,1748123439413,-500.0,0.00019821,2]
[362260088,1748123439422,-1000.0,0.00019821,2]
[362260089,1748123439432,-500.0,0.00019821,2]
[362260090,1748123439442,-160.34780982,0.00019827,2]
[362260091,1748123439451,-11087.67579626,0.00019839,2]
[362260092,1748123439460,-200.0,0.0001984,2]
[362260093,1748123439470,-718.60742665,0.00019891,2]
[362260094,1748123439479,-1338.45436307,0.000199,2]
[362260095,1748123439489,-160.34780982,0.000199,2]
[362260096,1748123439498,-2285.0,0.000199,7]
[362260097,1748123439507,-11087.67579626,0.000199,2]
[362260098,1748123439516,-3938.23566026,0.000199,2]
[362260099,1748123439525,-237.0,0.000199,2]
[362260100,1748123439534,-1000.0,0.00019921,2]
[362260101,1748123439544,-500.0,0.00019973,2]
[362260102,1748123439553,-500.0,0.00019973,2]
[362260103,1748123439562,-500.0,0.00019973,2]
[362260104,1748123439572,-234.73579651,0.00019989,2]
[362260105,1748123439581,-234.73579651,0.0001999,2]
[362260106,1748123439590,-234.73579651,0.0001999,2]
[362260107,1748123439600,-193.9605506,0.00019999,2]
[362260108,1748123439609,-701.41893514,0.00019999,2]
[362260109,1748123439620,-110531.37852348,0.00019999,2]
[362260113,1748123440095,-11737.86084069,0.00019999,2]
[362260116,1748123444035,-161.53122315,0.00019215,2]
[362260117,1748123444045,-653.50239655,0.00019999,2]
[362260118,1748123444151,-149598.16204168,0.00019999,2]
[362260119,1748123444212,-284730.26348562,0.00019999,2]
[362260120,1748123444222,-10003.31793351,0.00019999,2]
[362260121,1748123444232,-217.18,0.00019999,2]
[362260122,1748123444242,-2865.78590523,0.00019999,2]
[362260123,1748123444251,-1089410.56897305,0.0002,2]
[362260124,1748123444383,-34400.21911054,0.0002,2]
[362260146,1748123445827,-420.0,0.00019178,2]
[362260147,1748123445837,-420.0,0.00019178,2]
[362260148,1748123445847,-420.0,0.00019205,2]
[362260149,1748123445860,-217.73,0.00019205,2]
[362260150,1748123445870,-420.0,0.00019232,2]
[362260151,1748123445880,-161.53122312,0.00019352,2]
[362260152,1748123445890,-45215.77709545,0.0002,2]
[362260153,1748123445901,-419.13546793,0.0002,2]
[362260154,1748123445912,-410.51601007,0.0002,2]
[362260155,1748123445924,-250.0,0.0002,2]
[362260156,1748123445936,-252.05,0.0002,2]
[362260157,1748123445956,-420.0,0.0001926,2]
[362260158,1748123445965,-7153.14439078,0.0002,2]
[362260159,1748123481115,317.0,0.0001917,30]
[362260160,1748123737763,2500.93,0.00013699,2]
[362260161,1748123738179,2500.93,0.00013699,2]
[362260162,1748123738528,178.94784282,0.00013699,2]
[362260163,1748123738552,2321.98215718,0.00013699,2]
[362260164,1748123738932,1652.90784282,0.00013699,2]
[362260165,1748123738958,848.02215718,0.00013699,2]
[362260166,1748123739312,2500.93,0.00013699,2]
[362260167,1748123740552,234.4177044,0.00013699,2]
[362260168,1748123740575,2266.5122956,0.00013699,2]
[362260169,1748123740907,2500.93,0.00013699,2]
[362260170,1748123740947,1883.60554722,0.00013699,2]
[362260171,1748123740974,617.32445278,0.00013699,2]
[362260172,1748123741474,2500.93,0.00013699,2]
[362260173,1748123742489,2500.93,0.00013699,2]
[362260174,1748123742848,2500.93,0.00013699,2]
[362260175,1748123743232,1879.88554722,0.00013699,2]
[362260176,1748123743253,621.04445278,0.00013699,2]
[362260177,1748123743571,2500.93,0.00013699,2]
[362260178,1748123743896,2500.93,0.00013699,2]
[362260179,1748123744235,2500.93,0.00013699,2]
[362260180,1748123744592,1876.16554722,0.00013699,2]
[362260181,1748123744615,624.76445278,0.00013699,2]
[362260182,1748123744922,2500.93,0.00013699,2]
[362260183,1748123745325,2500.93,0.00013699,2]
[362260184,1748123745737,2500.93,0.00013699,2]
[362260185,1748123746149,1872.44554722,0.00013699,2]
[362260186,1748123746171,628.53184292,0.00013699,2]
[362260187,1748123875373,250.0,0.00015,2]
[362260188,1748123876463,300.0,0.00017,2]
[362260189,1748124214195,374.09,0.00013699,2]
[362260191,1748124330115,-247.01,0.00018388,2]
[362260192,1748124330137,-206.29885823,0.00018388,2]
[362260193,1748124452102,-209.11870613,0.00018388,2]
[362260194,1748124452123,-49.45114177,0.00018388,2]
[362260195,1748124452144,-198.07979454,0.00018436,2]
[362260199,1748124580273,589.42,0.00016505,2]
[362260200,1748124631997,-1.47020546,0.00018436,2]
[362260201,1748124632007,-796.85778272,0.00018615,2]
[362260202,1748124632068,-203.14221728,0.00018615,2]
[362260203,1748124632077,-152.29,0.00018622,2]
[362260204,1748124632088,-152.29,0.00018628,2]
[362260205,1748124632098,-150.0,0.0001863,7]
[362260206,1748124632107,-152.29,0.00018633,2]
[362260207,1748124632117,-152.29,0.00018639,2]
[362260208,1748124632127,-51.84039364,0.00018645,2]
[362260209,1748124632167,-100.44960636,0.00018645,2]
[362260210,1748124632178,-152.29,0.00018651,2]
[362260211,1748124632188,-152.29,0.00018657,2]
[362260212,1748124632198,-152.29,0.00018662,2]
[362260213,1748124632207,-152.29,0.00018668,2]
[362260214,1748124632217,-150.0,0.00018674,2]
[362260215,1748124632227,-152.29,0.00018674,2]
[362260216,1748124632236,-152.29,0.0001868,2]
[362260217,1748124632246,-152.29,0.00018686,2]
[362260218,1748124632265,-152.29,0.00018691,2]
[362260219,1748124632276,-152.29,0.00018697,2]
[362260220,1748124632286,-152.29,0.00018703,2]
[362260221,1748124632296,-152.29,0.00018709,2]
[362260222,1748124632305,-152.29,0.00018715,2]
[362260223,1748124632315,-589.42,0.00018769,2]
[362260224,1748124632324,-151.0,0.00018911,2]
[362260225,1748124632334,-1199.20597015,0.00018911,2]
[362260226,1748124632343,-207.4,0.00018911,2]
[362260227,1748124632353,-350.0,0.00019,2]
[362260228,1748124632362,-98.52466833,0.00019006,2]
[362260229,1748124632381,-573.37742207,0.00019006,2]
[362260230,1748124632391,-455.58053933,0.0001911,2]
[362260231,1748124632400,-420.0,0.00019178,2]
[362260233,1748124632410,-420.0,0.00019178,2]
[362260235,1748124632420,-420.0,0.00019178,2]
[362260237,1748124632429,-420.0,0.00019178,2]
[362260239,1748124632438,-91.41611269,0.00019178,2]